bitfinex/quotes_SOLUSD_20250814
["timestamp","ask_amount","ask_price","bid_price","bid_amount"]
[1755144122035,6.19707245,207.69,207.68,0.03]
[1755144122340,6.19707245,207.69,207.59,0.01808829]
[1755144122341,6.90707245,207.69,207.59,0.01808829]
[1755144122524,6.19707245,207.65,207.59,0.01808829]
[1755144122728,6.19707245,207.65,207.64,34.79]
[1755144122930,6.90707245,207.65,207.64,34.79]
[1755144123131,6.90707245,207.65,207.59,0.01808829]
[1755144123342,1.922476,207.71,207.59,0.01808829]
[1755144123526,6.90707245,207.64,207.59,0.01808829]
[1755144123838,1.922476,207.71,207.59,0.01808829]
[1755144124023,0.71,207.67,207.59,0.19808829]
[1755144124637,0.71,207.67,207.6,34.8]
[1755144125016,6.19707245,207.71,207.61,69.2]
[1755144125017,0.71,207.69,207.61,69.2]
[1755144125236,0.71,207.72,207.62,0.18]
[1755144125420,0.71,207.72,207.61,69.2]
[1755144125421,6.90707245,207.72,207.61,69.2]
[1755144125629,6.19707245,207.71,207.61,69.2]
[1755144125825,6.19707245,207.69,207.61,34.6]
[1755144126017,0.71,207.68,207.6,34.8]
[1755144127932,6.197072,207.79,207.61,0.18]
[1755144128130,0.71,207.72,207.61,133.88]
[1755144128331,0.71,207.72,207.62,0.18]
[1755144130133,0.71,207.72,207.62,133.88]
[1755144130957,0.71,207.72,207.62,133.7]
[1755144131123,10.13508034,207.72,207.63,34.8]
[1755144131444,9.42508034,207.7,207.64,34.78]
[1755144131633,0.71,207.69,207.59,0.01808829]
[1755144131831,9.42508034,207.64,207.6,34.8]
[1755144132030,0.71,207.63,207.6,34.8]
[1755144132239,10.13508034,207.63,207.6,34.8]
[1755144132436,0.71,207.63,207.6,34.8]
[1755144132627,0.71,207.62,207.6,34.8]
[1755144132947,0.71,207.61,207.6,34.8]
[1755144135047,0.71,207.66,207.6,104.04]
[1755144136850,10.13508034,207.69,207.6,34.98]
[1755144137262,0.71,207.69,207.6,34.98]
[1755144138632,0.71,207.69,207.61,0.18]
[1755144139833,0.71,207.71,207.61,0.18]
[1755144140150,0.71,207.71,207.61,133.88]
[1755144140351,0.71,207.71,207.62,0.18]
[1755144141734,0.71,207.73,207.62,0.18]
[1755144141939,19.48508034,207.84,207.63,34.78]
[1755144141940,0.77,207.74,207.63,34.78]
[1755144142135,0.77,207.74,207.64,0.18]
[1755144145060,0.77,207.74,207.65,69.2]
[1755144145365,0.77,207.74,207.65,69.38]
[1755144147266,0.77,207.74,207.65,34.78]
[1755144149447,9.42508034,207.73,207.61,0.18]
[1755144149659,0.71,207.72,207.62,34.78]
[1755144150673,0.71,207.72,207.61,0.18]
[1755144150967,0.71,207.72,207.63,34.78]
[1755144151840,0.71,207.72,207.64,0.18]
[1755144152046,9.42508034,207.71,207.65,34.78]
[1755144152261,0.71,207.7,207.65,34.78]
[1755144152463,0.71,207.69,207.65,34.78]
[1755144152661,0.71,207.7,207.65,34.78]
[1755144153164,0.71,207.73,207.65,34.96]
[1755144153350,0.71,207.73,207.65,34.78]
[1755144153662,6.18535957,207.72,207.65,34.78]
[1755144153877,0.71,207.71,207.65,34.78]
[1755144155070,0.71,207.71,207.66,69.2]
[1755144156268,0.71,207.71,207.66,34.6]
[1755144156846,6.89535957,207.71,207.66,34.6]
[1755144157263,0.71,207.7,207.66,34.6]
[1755144158359,0.71,207.7,207.65,34.78]
[1755144159656,6.89535957,207.7,207.65,34.78]
[1755144159876,6.18535957,207.67,207.66,34.78]
[1755144160046,6.89535957,207.67,207.66,34.78]
[1755144161377,0.71,207.67,207.66,34.78]
[1755144161757,0.06,207.74,207.66,34.78]
[1755144161965,6.89535957,207.73,207.66,34.78]
[1755144162165,0.71,207.72,207.66,34.78]
[1755144162772,0.06,207.74,207.66,34.96]
[1755144162974,0.06,207.74,207.67,0.18]
[1755144164977,0.06,207.74,207.68,69.24]
[1755144165966,0.71,207.73,207.68,69.24]
[1755144166166,0.06,207.74,207.68,69.24]
[1755144166367,0.71,207.72,207.68,69.24]
[1755144166697,0.06,207.74,207.69,0.18]
[1755144167182,0.06,207.74,207.7,0.18]
[1755144167888,0.06,207.74,207.71,0.18]
[1755144168063,0.06,207.74,207.72,35.14]
[1755144168264,0.06,207.79,207.73,35.14]
[1755144168487,0.06,207.79,207.74,0.18]
[1755144168985,0.06,207.79,207.75,0.18]
[1755144169282,0.06,207.79,207.76,0.18]
[1755144169490,0.77,207.79,207.73,34.96]
[1755144169895,0.77,207.79,207.74,34.98]
[1755144170262,0.77,207.79,207.64,133.7]
[1755144170470,0.77,207.79,207.65,35.16]
[1755144170676,0.77,207.79,207.66,0.18]
[1755144171088,10.18291679,207.79,207.66,0.18]
[1755144171272,9.41291679,207.75,207.65,34.98]
[1755144171482,10.12291679,207.74,207.65,34.98]
[1755144171781,0.71,207.73,207.65,34.98]
[1755144172170,0.71,207.73,207.63,0.21]
[1755144172171,9.41291679,207.72,207.66,35.0]
[1755144172371,0.71,207.71,207.66,35.0]
[1755144172777,10.12291679,207.71,207.66,35.0]
[1755144172993,0.71,207.71,207.66,35.0]
[1755144173194,0.71,207.7,207.66,35.0]
[1755144173597,0.71,207.69,207.66,35.0]
[1755144173986,0.71,207.68,207.66,35.0]
[1755144174578,0.71,207.68,207.63,0.03]
[1755144174782,9.41291679,207.67,207.64,34.98]
[1755144174993,0.71,207.66,207.65,69.2]
[1755144175381,0.71,207.66,207.65,34.6]
[1755144176899,0.71,207.68,207.64,34.98]
[1755144177198,0.71,207.71,207.65,0.18]
[1755144178595,0.71,207.73,207.65,0.18]
[1755144180408,10.09291679,207.76,207.65,0.18]
[1755144180594,0.68,207.72,207.66,35.04]
[1755144180984,9.41291679,207.71,207.63,0.03]
[1755144181184,0.68,207.7,207.67,35.04]
[1755144181790,9.41291679,207.69,207.67,35.04]
[1755144182112,0.68,207.68,207.67,35.04]
[1755144184088,0.68,207.7,207.67,35.04]
[1755144184290,0.68,207.69,207.67,35.04]
[1755144184483,0.68,207.68,207.67,35.04]
[1755144185104,0.68,207.68,207.67,104.24]
[1755144185610,0.68,207.71,207.67,104.24]
[1755144185805,0.68,207.7,207.67,104.24]
[1755144186881,9.41291679,207.73,207.67,104.24]
[1755144187081,0.68,207.72,207.67,69.64]
[1755144187311,9.41291679,207.74,207.67,69.64]
[1755144187489,0.68,207.71,207.67,69.64]
[1755144187909,0.68,207.71,207.67,35.04]
[1755144188292,0.68,207.73,207.67,35.04]
[1755144189193,10.09291679,207.73,207.67,35.04]
[1755144189401,9.41291679,207.72,207.67,35.04]
[1755144189791,0.68,207.71,207.67,35.04]
[1755144190001,9.41291679,207.73,207.67,35.07]
[1755144190207,0.68,207.7,207.67,35.07]
[1755144190512,0.68,207.69,207.67,35.07]
[1755144190891,0.68,207.68,207.67,35.07]
[1755144195017,0.68,207.68,207.67,104.27]
[1755144196400,0.68,207.7,207.67,104.27]
[1755144196925,6.18744857,207.71,207.67,69.67]
[1755144197102,0.68,207.69,207.67,69.67]
[1755144197426,0.68,207.69,207.67,71.591738]
[1755144197720,0.74,207.74,207.67,69.85]
[1755144197894,0.74,207.74,207.68,1.92146]
[1755144200127,6.92744857,207.74,207.68,1.92146]
[1755144200302,6.18744857,207.7,207.68,1.92146]
[1755144200503,0.68,207.69,207.67,35.07]
[1755144200702,0.68,207.68,207.67,35.07]
[1755144201804,6.86744857,207.71,207.67,35.07]
[1755144202000,0.68,207.7,207.67,35.07]
[1755144202219,0.68,207.69,207.67,35.07]
[1755144203023,6.18744857,207.71,207.67,35.07]
[1755144203214,0.68,207.7,207.67,35.07]
[1755144203422,0.68,207.69,207.67,35.07]
[1755144204217,6.18744857,207.73,207.67,35.07]
[1755144204425,0.68,207.72,207.67,35.07]
[1755144204600,0.68,207.71,207.67,35.07]
[1755144204993,0.06,207.74,207.68,69.2]
[1755144204994,6.18744857,207.73,207.68,69.2]
[1755144205198,0.68,207.72,207.68,75.387449]
[1755144205398,6.18744857,207.73,207.68,75.387449]
[1755144205399,0.68,207.71,207.68,69.2]
[1755144205617,0.68,207.73,207.68,69.2]
[1755144205823,0.68,207.72,207.69,6.187449]
[1755144206028,0.68,207.72,207.7,34.82]
[1755144206219,0.68,207.71,207.7,34.82]
[1755144212117,0.68,207.71,207.67,0.03]
[1755144212118,6.86744857,207.71,207.67,0.03]
[1755144212322,6.18744857,207.68,207.67,0.03]
[1755144212542,6.85744857,207.68,207.67,34.83]
[1755144214138,6.85744857,207.68,207.67,0.03]
[1755144214441,6.85744857,207.68,207.67,34.83]
[1755144214944,6.85744857,207.68,207.67,69.43]
[1755144215241,6.85744857,207.68,207.67,104.03]
[1755144215829,6.85744857,207.68,207.63,0.03]
[1755144216031,6.18744857,207.65,207.63,0.03]
[1755144216226,0.67,207.64,207.63,0.03]
[1755144217041,0.67,207.64,207.63,34.83]
[1755144218342,6.85744857,207.64,207.63,0.03]
[1755144218531,6.85744857,207.64,207.63,34.83]
[1755144220349,6.85744857,207.64,207.63,0.03]
[1755144220531,6.85744857,207.64,207.63,34.83]
[1755144222251,6.85744857,207.64,207.63,0.03]
[1755144222450,6.85744857,207.64,207.63,34.83]
[1755144225066,6.85744857,207.64,207.63,104.07]
[1755144228042,11.67347631,207.64,207.63,104.07]
[1755144228246,6.85744857,207.64,207.63,104.07]
[1755144228464,6.85744857,207.64,207.63,104.09]
[1755144228670,11.67347631,207.64,207.63,104.09]
[1755144228867,6.85744857,207.64,207.63,104.09]
[1755144229361,11.67347631,207.64,207.63,104.09]
[1755144229535,6.85744857,207.64,207.63,104.09]
[1755144230374,11.67347631,207.64,207.63,104.09]
[1755144235764,11.67347631,207.64,207.63,69.27]
[1755144235946,11.67347631,207.64,207.63,104.09]
[1755144237162,11.67347631,207.64,207.63,69.27]
[1755144237351,11.67347631,207.64,207.63,104.09]
[1755144246560,17.86092488,207.64,207.63,34.64]
[1755144246755,17.86092488,207.64,207.6,0.03]
[1755144246953,6.18744857,207.61,207.6,0.03]
[1755144247984,6.18744857,207.61,207.6,34.85]
[1755144250371,11.00417223,207.61,207.6,34.85]
[1755144252262,11.68417223,207.61,207.6,34.85]
[1755144253465,11.00417223,207.61,207.6,34.85]
[1755144255078,11.00417223,207.61,207.6,104.13]
[1755144255684,6.18744857,207.61,207.6,104.13]
[1755144255981,6.18744857,207.61,207.6,104.11]
[1755144257770,0.68,207.63,207.6,104.11]
[1755144257977,6.18744857,207.61,207.6,104.11]
[1755144259314,0.74,207.67,207.6,104.32]
[1755144259469,6.18744857,207.63,207.61,0.21]
[1755144259660,6.18744857,207.62,207.6,104.11]
[1755144259865,6.18744857,207.62,207.61,0.21]
[1755144260067,0.06,207.67,207.61,0.21]
[1755144260379,6.18744857,207.64,207.61,0.21]
[1755144260583,6.18744857,207.64,207.62,0.21]
[1755144260783,0.06,207.67,207.6,69.47]
[1755144260784,0.74,207.67,207.63,34.8]
[1755144260990,6.18744857,207.64,207.6,0.03]
[1755144261200,6.18744857,207.62,207.61,34.8]
[1755144261395,6.86744857,207.62,207.61,34.8]
[1755144262395,13.05489714,207.62,207.61,34.8]
[1755144262573,13.05489714,207.62,207.6,0.03]
[1755144262779,6.86744857,207.61,207.6,0.03]
[1755144262994,6.86744857,207.61,207.58,0.03]
[1755144263203,6.18744857,207.59,207.53,0.03]
[1755144263379,6.18744857,207.57,207.53,0.03]
[1755144263574,6.86744857,207.57,207.53,0.03]
[1755144264279,6.86744857,207.56,207.53,0.03]
[1755144264487,6.86744857,207.55,207.53,0.03]
[1755144265069,6.86744857,207.55,207.54,69.31]
[1755144265386,11.68556468,207.55,207.54,104.11]
[1755144265582,11.68556468,207.55,207.53,0.03]
[1755144265886,6.86744857,207.54,207.53,0.03]
[1755144266695,6.86744857,207.54,207.49,0.2]
[1755144266893,6.86744857,207.53,207.49,0.2]
[1755144267209,11.68602901,207.53,207.52,34.83]
[1755144269692,11.68602901,207.53,207.49,0.2]
[1755144269894,6.18744857,207.5,207.49,0.2]
[1755144270096,6.86744857,207.5,207.49,0.2]
[1755144271386,6.86744857,207.5,207.49,35.0]
[1755144272398,0.71,207.54,207.49,35.0]
[1755144272584,6.18744857,207.51,207.5,0.21]
[1755144272984,6.18744857,207.52,207.5,0.21]
[1755144273183,6.18744857,207.53,207.5,0.21]
[1755144273397,6.18744857,207.52,207.51,0.21]
[1755144273801,6.18744857,207.53,207.51,0.21]
[1755144274008,6.18744857,207.55,207.51,0.21]
[1755144274384,6.18744857,207.54,207.51,0.21]
[1755144275095,6.18744857,207.54,207.52,69.28]
[1755144275486,6.18744857,207.54,207.53,0.21]
[1755144276308,6.24744857,207.55,207.53,0.21]
[1755144277494,0.06,207.55,207.53,0.21]
[1755144277995,0.06,207.55,207.54,0.21]
[1755144278308,6.24744857,207.55,207.52,0.21]
[1755144279324,6.24744857,207.55,207.53,0.21]
[1755144279512,6.24744857,207.55,207.49,35.0]
[1755144279513,0.06,207.55,207.54,0.21]
[1755144281603,0.06,207.55,207.51,0.21]
[1755144282016,0.06,207.55,207.52,0.21]
[1755144282196,0.06,207.55,207.5,6.187449]
[1755144282514,0.06,207.55,207.53,0.21]
[1755144284001,0.06,207.55,207.49,35.0]
[1755144284201,6.18744857,207.52,207.5,34.78]
[1755144284397,6.18744857,207.51,207.5,34.78]
[1755144284613,0.71,207.51,207.49,0.2]
[1755144284909,6.89744857,207.5,207.49,0.2]
[1755144285086,6.89744857,207.5,207.49,104.26]
[1755144288309,11.71672567,207.5,207.49,69.28]
[1755144288706,11.71672567,207.5,207.46,0.03]
[1755144288707,17.90417424,207.5,207.46,0.03]
[1755144288910,17.90417424,207.5,207.44,0.03]
[1755144288911,6.18744857,207.47,207.44,0.03]
[1755144289087,6.18744857,207.48,207.44,0.03]
[1755144289088,6.18744857,207.45,207.44,0.03]
[1755144289297,6.89744857,207.45,207.31,0.44]
[1755144289603,6.18744857,207.35,207.32,34.78]
[1755144289804,6.18744857,207.35,207.33,34.78]
[1755144290027,6.18744857,207.34,207.33,34.78]
[1755144292424,6.18744857,207.36,207.33,34.78]
[1755144292629,6.18744857,207.36,207.33,35.25]
[1755144293615,6.18744857,207.35,207.33,35.25]
[1755144294223,6.18744857,207.35,207.33,34.78]
[1755144294427,6.18744857,207.36,207.33,34.78]
[1755144294923,6.18744857,207.36,207.34,34.66]
[1755144295234,6.18744857,207.36,207.34,69.32]
[1755144296223,6.89744857,207.35,207.34,69.32]
[1755144296530,6.18744857,207.35,207.34,34.66]
[1755144296903,6.89744857,207.35,207.34,69.46]
[1755144297203,6.89744857,207.35,207.34,34.8]
[1755144301430,0.71,207.35,207.34,34.8]
[1755144301610,0.69,207.37,207.34,34.8]
[1755144301809,14.442171,207.42,207.34,34.83]
[1755144302005,6.18744857,207.35,207.34,0.03]
[1755144302324,6.87744857,207.35,207.34,34.83]
[1755144302523,6.18744857,207.35,207.34,34.83]
[1755144302727,0.69,207.37,207.34,34.83]
[1755144302918,6.18744857,207.35,207.34,34.83]
[1755144304940,6.18744857,207.35,207.34,69.49]
[1755144305233,6.18744857,207.35,207.34,104.15]
[1755144305439,0.69,207.39,207.34,104.15]
[1755144305732,6.18744857,207.35,207.34,104.15]
[1755144306515,85.287449,207.43,207.34,104.15]
[1755144306705,0.69,207.44,207.35,0.47]
[1755144306906,6.18744857,207.42,207.35,0.47]
[1755144307123,0.69,207.44,207.35,0.47]
[1755144307124,6.18744857,207.41,207.35,0.47]
[1755144307511,6.18744857,207.37,207.34,0.03]
[1755144307724,6.87744857,207.37,207.35,34.8]
[1755144308030,6.18744857,207.37,207.35,34.8]
[1755144308234,6.18744857,207.38,207.35,34.8]
[1755144308438,6.87744857,207.39,207.35,34.8]
[1755144308834,6.18744857,207.37,207.35,34.8]
[1755144309220,6.87744857,207.37,207.35,34.8]
[1755144309945,6.18744857,207.37,207.35,34.8]
[1755144310940,0.69,207.42,207.35,35.27]
[1755144311147,6.18744857,207.41,207.36,0.47]
[1755144311333,6.18744857,207.4,207.36,0.47]
[1755144311537,6.18744857,207.4,207.35,34.8]
[1755144311848,6.18744857,207.4,207.35,35.27]
[1755144312023,6.18744857,207.41,207.35,35.27]
[1755144313326,0.69,207.42,207.35,35.27]
[1755144313327,6.18744857,207.4,207.35,35.27]
[1755144313525,6.87744857,207.4,207.35,35.27]
[1755144313846,6.18744857,207.38,207.35,34.8]
[1755144314043,16.187449,207.47,207.36,34.78]
[1755144314246,6.87744857,207.37,207.36,34.78]
[1755144314929,6.87744857,207.37,207.36,104.1]
[1755144316451,6.87744857,207.37,207.36,69.32]
[1755144316654,6.87744857,207.37,207.36,104.1]
[1755144318262,6.18744857,207.37,207.36,104.1]
[1755144318430,6.18744857,207.38,207.36,104.1]
[1755144318933,6.18744857,207.37,207.36,104.1]
[1755144319338,6.87744857,207.37,207.36,104.1]
[1755144320125,6.18744857,207.37,207.36,104.1]
[1755144322425,6.18744857,207.38,207.36,69.44]
[1755144322628,6.18744857,207.4,207.36,69.91]
[1755144323147,6.18744857,207.4,207.36,35.25]
[1755144323443,6.18744857,207.4,207.36,34.78]
[1755144323622,6.18744857,207.39,207.36,34.78]
[1755144323827,6.87744857,207.38,207.36,34.78]
[1755144324049,6.18744857,207.37,207.36,34.78]
[1755144324226,6.18744857,207.37,207.36,34.81]
[1755144324426,6.18744857,207.37,207.36,0.03]
[1755144324640,6.18744857,207.37,207.36,34.81]
[1755144324842,6.87744857,207.37,207.36,34.81]
[1755144325150,6.87744857,207.37,207.36,104.17]
[1755144326238,6.18744857,207.37,207.36,104.17]
[1755144326643,6.18744857,207.37,207.36,69.49]
[1755144327841,6.87744857,207.37,207.36,69.49]
[1755144329056,6.87744857,207.37,207.36,34.81]
[1755144333552,79.1,207.39,207.36,35.28]
[1755144333733,6.18744857,207.38,207.36,34.81]
[1755144333935,6.18744857,207.37,207.36,34.81]
[1755144334635,79.1,207.39,207.36,34.81]
[1755144334835,0.06,207.44,207.37,0.47]
[1755144335033,0.06,207.44,207.38,69.36]
[1755144335340,0.06,207.44,207.39,0.47]
[1755144335538,6.18744857,207.43,207.4,34.78]
[1755144335746,6.18744857,207.42,207.4,34.78]
[1755144337362,6.18744857,207.42,207.41,34.78]
[1755144337548,6.18744857,207.42,207.37,0.47]
[1755144337858,6.18744857,207.42,207.38,34.78]
[1755144338970,6.18744857,207.41,207.38,34.78]
[1755144339258,6.18744857,207.4,207.38,34.78]
[1755144339442,6.18744857,207.39,207.36,0.03]
[1755144339645,4.82090343,207.43,207.37,34.76]
[1755144339848,6.18744857,207.41,207.37,34.76]
[1755144340054,6.18744857,207.41,207.37,35.23]
[1755144340449,6.18744857,207.42,207.37,35.23]
[1755144340860,0.06,207.44,207.36,0.03]
[1755144340861,6.90744857,207.41,207.36,0.03]
[1755144341065,0.06,207.44,207.37,34.76]
[1755144341066,6.18744857,207.38,207.37,34.76]
[1755144341369,0.72,207.4,207.37,34.76]
[1755144341547,6.90744857,207.4,207.37,34.76]
[1755144341867,6.18744857,207.39,207.37,34.76]
[1755144342074,6.90744857,207.38,207.37,34.76]
[1755144342237,6.90744857,207.38,207.36,0.03]
[1755144342438,4.82164399,207.4,207.37,34.76]
[1755144342674,4.82138063,207.41,207.37,34.76]
[1755144342964,0.06,207.44,207.37,34.76]
[1755144342965,0.72,207.4,207.37,34.76]
[1755144343139,4.88074479,207.44,207.37,34.76]
[1755144343342,0.72,207.39,207.37,34.76]
[1755144343759,6.18744857,207.38,207.37,34.76]
[1755144344969,6.18744857,207.38,207.37,104.08]
[1755144346246,6.90744857,207.38,207.37,104.08]
[1755144348248,6.18744857,207.38,207.37,104.08]
[1755144349669,6.18744857,207.41,207.37,104.55]
[1755144350469,6.18744857,207.43,207.38,0.47]
[1755144351168,6.18744857,207.42,207.38,0.47]
[1755144351766,6.18744857,207.43,207.38,0.47]
[1755144352276,6.90744857,207.43,207.38,0.47]
[1755144353078,6.18744857,207.43,207.38,0.47]
[1755144353773,6.90744857,207.43,207.38,0.47]
[1755144354078,0.72,207.42,207.36,0.03]
[1755144354393,6.90744857,207.42,207.36,0.03]
[1755144354575,6.18744857,207.39,207.37,34.76]
[1755144354955,6.90744857,207.39,207.38,69.32]
[1755144355976,6.90744857,207.39,207.38,104.08]
[1755144358873,6.90744857,207.39,207.38,69.32]
[1755144359073,6.90744857,207.39,207.38,104.08]
[1755144360400,6.90744857,207.39,207.38,69.32]
[1755144360574,11.72928183,207.39,207.38,104.08]
[1755144361563,11.72928183,207.39,207.36,0.03]
[1755144361782,6.18744857,207.37,207.36,0.03]
[1755144362001,6.86744857,207.37,207.36,0.03]
[1755144362591,11.68974687,207.37,207.36,0.03]
[1755144362799,11.68974687,207.37,207.36,34.79]
[1755144363177,6.86744857,207.37,207.36,34.79]
[1755144364614,11.68974687,207.37,207.36,0.03]
[1755144364777,11.68974687,207.37,207.36,34.79]
[1755144364974,11.68974687,207.37,207.36,69.36]
[1755144366092,11.68974687,207.37,207.36,104.12]
[1755144366483,6.86744857,207.37,207.36,104.12]
[1755144366688,6.18744857,207.37,207.36,104.12]
[1755144368795,6.18744857,207.38,207.36,104.12]
[1755144369013,6.18744857,207.4,207.37,0.47]
[1755144369298,0.74,207.44,207.36,104.15]
[1755144369600,6.18744857,207.41,207.38,0.47]
[1755144369802,6.18744857,207.42,207.39,35.23]
[1755144370011,6.18744857,207.42,207.4,0.47]
[1755144370512,6.24744857,207.44,207.41,0.47]
[1755144370677,6.24744857,207.44,207.42,34.76]
[1755144372207,6.18744857,207.43,207.38,0.47]
[1755144372383,6.18744857,207.43,207.39,35.23]
[1755144372587,6.18744857,207.43,207.4,0.47]
[1755144374005,6.24744857,207.44,207.4,0.47]
[1755144374397,0.06,207.44,207.4,0.47]
[1755144374587,0.06,207.44,207.41,0.47]
[1755144374785,0.06,207.44,207.42,0.47]
[1755144374992,0.06,207.44,207.43,104.55]
[1755144377006,0.06,207.44,207.43,69.87]
[1755144377208,0.06,207.44,207.43,35.21]
[1755144377507,0.06,207.47,207.43,35.21]
[1755144377691,0.06,207.49,207.44,0.35]
[1755144378402,0.06,207.49,207.44,2.273771]
[1755144378583,6.86744857,207.48,207.45,34.74]
[1755144378783,0.06,207.49,207.45,34.74]
[1755144378982,6.86744857,207.48,207.45,34.74]
[1755144379182,6.86744857,207.47,207.45,34.74]
[1755144379510,6.18744857,207.47,207.45,34.74]
[1755144379804,6.18744857,207.48,207.45,34.74]
[1755144380391,6.86744857,207.48,207.45,34.74]
[1755144380894,6.18744857,207.46,207.38,0.35]
[1755144381200,6.18744857,207.43,207.39,34.74]
[1755144381591,6.18744857,207.44,207.39,34.74]
[1755144381792,6.86744857,207.44,207.39,34.74]
[1755144382787,6.18744857,207.43,207.39,34.74]
[1755144383305,6.86744857,207.48,207.4,0.35]
[1755144383506,6.18744857,207.48,207.4,0.35]
[1755144383886,6.18744857,207.46,207.4,0.35]
[1755144385088,6.18744857,207.46,207.41,69.32]
[1755144385288,6.18744857,207.46,207.41,69.67]
[1755144385986,6.86744857,207.47,207.41,69.67]
[1755144387289,6.18744857,207.46,207.41,69.32]
[1755144387506,6.86744857,207.46,207.41,69.32]
[1755144388390,0.68,207.45,207.41,69.32]
[1755144388599,6.18744857,207.46,207.41,69.32]
[1755144388792,6.86744857,207.46,207.41,69.32]
[1755144390500,6.86744857,207.46,207.41,0.03]
[1755144391404,6.90744857,207.45,207.42,34.72]
[1755144392009,0.72,207.45,207.42,34.72]
[1755144393403,6.90744857,207.45,207.42,34.72]
[1755144393604,0.72,207.45,207.42,34.72]
[1755144394725,0.06,207.47,207.42,34.72]
[1755144395221,0.06,207.47,207.43,69.67]
[1755144395601,0.06,207.47,207.43,35.01]
[1755144396891,0.06,207.47,207.43,34.66]
[1755144399513,0.06,207.47,207.42,34.72]
[1755144400024,0.06,207.47,207.42,35.07]
[1755144401019,0.06,207.47,207.43,0.35]
[1755144401228,0.06,207.47,207.44,0.35]
[1755144401717,0.06,207.47,207.45,0.35]
[1755144402118,0.06,207.47,207.44,1.923771]
[1755144402327,0.06,207.47,207.44,0.35]
[1755144403541,0.06,207.47,207.42,34.72]
[1755144403839,6.90744857,207.46,207.42,0.02]
[1755144404004,6.90744857,207.45,207.43,34.72]
[1755144404205,0.72,207.44,207.43,34.72]
[1755144404711,0.72,207.46,207.43,34.72]
[1755144404921,0.72,207.45,207.44,34.66]
[1755144405226,0.72,207.45,207.44,69.32]
[1755144406902,0.06,207.47,207.44,35.01]
[1755144407100,0.06,207.47,207.45,0.35]
[1755144407320,0.06,207.47,207.45,2.273493]
[1755144407799,0.06,207.47,207.46,0.35]
[1755144412629,0.06,207.47,207.46,2.273493]
[1755144412830,0.06,207.49,207.46,2.273493]
[1755144413034,0.06,207.49,207.47,35.05]
[1755144413207,0.06,207.49,207.48,0.35]
[1755144413535,0.06,207.49,207.48,2.273123]
[1755144414920,0.06,207.49,207.48,36.913123]
[1755144415124,0.06,207.49,207.48,71.553123]
[1755144415325,0.06,207.49,207.48,71.203123]
[1755144415623,0.06,207.49,207.48,105.903123]
[1755144417909,0.06,207.49,207.48,36.623123]
[1755144420735,0.06,207.49,207.48,36.973123]
[1755144422709,0.06,207.49,207.48,36.953123]
[1755144423134,0.06,207.49,207.48,1.923123]